bitfinex-derivatives/quotes_ETHF0:USTF0_20250420
["timestamp","ask_amount","ask_price","bid_price","bid_amount"]
[1745166964885,1.27542638,1579.9,1579.8,6.7181]
[1745166965092,1.27542638,1579.9,1579.8,11.19185]
[1745166965291,0.00949638,1579.9,1579.8,11.19185]
[1745166965791,0.00949638,1579.9,1579.8,11.63275388]
[1745166965985,0.00949638,1579.9,1579.8,11.63276202]
[1745166966186,0.00949638,1579.9,1579.8,11.19185]
[1745166966386,0.00949638,1579.9,1579.8,16.19185]
[1745166966586,0.00949638,1579.9,1579.8,16.63271652]
[1745166966988,0.00949638,1579.9,1579.8,17.51671652]
[1745166967190,0.00949638,1579.9,1579.8,17.07585]
[1745166967388,0.00949638,1579.9,1579.8,17.51671569]
[1745166967594,0.00949638,1579.9,1579.8,17.5167175]
[1745166970495,0.00949638,1579.9,1579.8,22.5167175]
[1745166971090,0.00949638,1579.9,1579.8,22.51640395]
[1745166971495,0.00949638,1579.9,1579.8,17.51640395]
[1745166972606,0.00949638,1579.9,1579.8,17.07585]
[1745166972806,0.00949638,1579.9,1579.8,17.51621429]
[1745166974011,0.00949638,1579.9,1579.8,22.51621429]
[1745166974206,6.38e-06,1579.9,1579.8,22.51621429]
[1745166974907,6.38e-06,1579.9,1579.8,22.51568273]
[1745166976698,6.38e-06,1579.9,1579.8,22.51523331]
[1745166977811,6.38e-06,1579.9,1579.8,13.40223331]
[1745166978001,6.38e-06,1579.9,1579.8,17.51223331]
[1745166978602,6.38e-06,1579.9,1579.8,17.51219507]
[1745166980002,1.74070638,1579.9,1579.8,17.51219507]
[1745166981210,6.38e-06,1579.9,1579.8,34.98608696]
[1745166982204,6.38e-06,1579.9,1579.8,34.98629861]
[1745166982404,6.38e-06,1579.9,1579.8,34.98633738]
[1745166984005,6.38e-06,1579.9,1579.8,34.98633221]
[1745166984405,6.38e-06,1579.9,1579.8,34.98636408]
[1745166985105,6.38e-06,1579.9,1579.8,17.51247219]
[1745166986713,6.38e-06,1579.9,1579.8,13.40247219]
[1745166987012,6.38e-06,1579.9,1579.8,17.51247219]
[1745166987210,6.38e-06,1579.9,1579.8,17.5127388]
[1745166987615,6.38e-06,1579.9,1579.8,13.40285545]
[1745166987800,6.38e-06,1579.9,1579.8,17.51285545]
[1745166988308,6.38e-06,1579.9,1579.8,13.40285545]
[1745166988513,6.38e-06,1579.9,1579.8,17.51285545]
[1745166989412,6.38e-06,1579.9,1579.8,17.07285]
[1745166989607,6.38e-06,1579.9,1579.8,17.51312768]
[1745166993221,6.38e-06,1579.9,1579.8,17.51327508]
[1745166994225,6.38e-06,1579.9,1579.8,22.51329229]
[1745166994521,6.38e-06,1579.9,1579.8,17.51329229]
[1745166994710,6.38e-06,1579.9,1579.8,13.40329229]
[1745166994916,6.38e-06,1579.9,1579.8,17.51336421]
[1745166996821,6.38e-06,1579.9,1579.8,17.51339095]
[1745166998523,0.81950638,1579.9,1579.8,17.51339095]
[1745166998718,0.81950638,1579.9,1579.8,17.51347568]
[1745167000121,0.81950638,1579.9,1579.8,13.40347568]
[1745167000523,0.81950638,1579.9,1579.8,16.66611831]
[1745167000919,0.81950638,1579.9,1579.8,16.66610526]
[1745167002223,0.81950638,1579.9,1579.8,16.66608359]
[1745167003122,6.38e-06,1579.9,1579.8,16.66608359]
[1745167003825,0.81550638,1579.9,1579.8,16.66608359]
[1745167004017,0.81550638,1579.9,1579.8,16.6661287]
[1745167004624,0.81550638,1579.9,1579.8,12.5561287]
[1745167004825,2.46130638,1579.9,1579.8,16.6661287]
[1745167005829,2.46130638,1579.9,1579.8,16.66624003]
[1745167006131,2.46130638,1579.9,1579.8,13.45844003]
[1745167006333,2.46130638,1579.9,1579.8,16.66624003]
[1745167007620,2.46130638,1579.9,1579.8,16.66655433]
[1745167008027,2.46130638,1579.9,1579.8,10.78255433]
[1745167009428,2.46130638,1579.9,1579.8,10.78255585]
[1745167010932,2.46130638,1579.9,1579.8,10.78247939]
[1745167011437,2.46130638,1579.9,1579.8,10.7824864]
[1745167012530,2.46130638,1579.9,1579.8,19.2218481]
[1745167013231,2.46130638,1579.9,1579.8,19.22179934]
[1745167014026,6.38e-06,1579.9,1579.8,19.22179934]
[1745167016025,1.70910638,1579.9,1579.8,19.22179934]
[1745167018628,1.70910638,1579.9,1579.8,19.2218748]
[1745167020242,6.38e-06,1579.9,1579.8,10.7825131]
[1745167023026,1.66560638,1579.9,1579.8,10.7825131]
[1745167024042,1.66560638,1579.9,1579.8,19.2218748]
[1745167024641,2.93147638,1579.9,1579.8,16.1972248]
[1745167024839,2.93147638,1579.9,1579.8,17.4631748]
[1745167025245,2.93147638,1579.9,1579.8,16.1972248]
[1745167025942,2.93147638,1579.9,1579.8,12.0882248]
[1745167026148,2.93147638,1579.9,1579.8,17.4631748]
[1745167026349,1.66560638,1579.9,1579.8,19.1607748]
[1745167026652,6.38e-06,1579.9,1579.8,19.1607748]
[1745167026944,6.38e-06,1579.9,1579.8,19.9947748]
[1745167027133,6.38e-06,1579.9,1579.8,19.99477342]
[1745167027535,6.38e-06,1579.9,1579.8,11.55541172]
[1745167027736,6.38e-06,1579.9,1579.8,11.55538574]
[1745167027938,6.38e-06,1579.9,1579.8,11.11435]
[1745167028137,6.38e-06,1579.9,1579.8,11.55539555]
[1745167029643,6.38e-06,1579.9,1579.8,11.55544236]
[1745167030941,6.38e-06,1579.9,1579.8,29.05608742]
[1745167031542,6.38e-06,1579.9,1579.8,34.94008742]
[1745167034650,6.38e-06,1579.9,1579.8,39.0681484]
[1745167035141,6.38e-06,1579.9,1579.8,39.0676433]
[1745167036949,6.38e-06,1579.9,1579.8,39.06755119]
[1745167038255,6.38e-06,1579.9,1579.8,39.06749036]
[1745167038850,6.38e-06,1579.9,1579.8,39.067491]
[1745167040553,6.38e-06,1579.9,1579.8,39.06767217]
[1745167042459,6.38e-06,1579.9,1579.8,47.45254447]
[1745167044350,6.38e-06,1579.9,1579.8,47.45277908]
[1745167046352,6.38e-06,1579.9,1579.8,47.4527675]
[1745167046753,6.38e-06,1579.9,1579.8,39.0678952]
[1745167047856,0.83250638,1579.9,1579.8,39.0678952]
[1745167048056,0.83250638,1579.9,1579.8,39.06789797]
[1745167048460,2.49470638,1579.9,1579.8,39.06789797]
[1745167049057,2.49470638,1579.9,1579.8,33.18389797]
[1745167049459,2.49470638,1579.9,1579.8,32.34989797]
[1745167049852,2.49470638,1579.9,1579.8,31.90905604]
[1745167050053,2.49470638,1579.9,1579.8,32.34986247]
[1745167051458,2.49470638,1579.9,1579.8,32.34786247]
[1745167051664,2.49470638,1579.9,1579.8,32.34792104]
[1745167052065,3.76057638,1579.9,1579.8,10.719215]
[1745167052365,2.49470638,1579.9,1579.8,10.719215]
[1745167053564,2.49470638,1579.9,1579.8,10.71927024]
[1745167054565,3.76057638,1579.9,1579.8,9.45332024]
[1745167054767,3.76057638,1579.9,1579.8,7.75572024]
[1745167055255,3.76057638,1579.9,1579.8,7.75572405]
[1745167055768,3.76057638,1579.9,1579.8,16.14817095]
[1745167056358,3.76057638,1579.9,1579.8,17.41412095]
[1745167056759,3.76057638,1579.9,1579.8,16.14817095]
[1745167057068,3.76057638,1579.9,1579.8,16.14816229]
[1745167057371,3.76057638,1579.9,1579.8,16.14815857]
[1745167058664,3.76057638,1579.9,1579.8,14.20630857]
[1745167058873,3.76057638,1579.9,1579.8,17.41410857]
[1745167059073,3.76057638,1579.9,1579.8,17.41405667]
[1745167059573,3.76057638,1579.9,1579.8,7.75565977]
[1745167059774,2.49470638,1579.9,1579.8,9.02160977]
[1745167059974,6.38e-06,1579.9,1579.8,10.74490977]
[1745167060174,6.38e-06,1579.9,1579.8,11.61700977]
[1745167062576,6.38e-06,1579.9,1579.8,11.61688219]
[1745167064476,6.38e-06,1579.9,1579.8,11.61689689]
[1745167068078,6.38e-06,1579.9,1579.8,11.61678978]
[1745167071980,6.38e-06,1579.9,1579.8,11.61679003]
[1745167075476,6.38e-06,1579.9,1579.8,11.61652363]
[1745167076782,6.38e-06,1579.9,1579.8,33.23207148]
[1745167078386,6.38e-06,1579.9,1579.8,39.11607148]
[1745167082189,6.38e-06,1579.9,1579.8,39.11601674]
[1745167084485,6.38e-06,1579.9,1579.8,33.23201674]
[1745167085092,6.38e-06,1579.9,1579.8,33.23200002]
[1745167085790,6.38e-06,1579.9,1579.8,33.23200181]
[1745167086992,6.38e-06,1579.9,1579.8,28.25290181]
[1745167087196,2.55180638,1579.9,1579.8,30.63560181]
[1745167087690,2.55180638,1579.9,1579.8,30.6357001]
[1745167088193,2.55180638,1579.9,1579.8,30.19529785]
[1745167088695,2.55180638,1579.9,1579.8,26.00936309]
[1745167089193,2.55180638,1579.9,1579.8,26.44979249]
[1745167090684,2.55180638,1579.9,1579.8,28.17689249]
[1745167090884,0.82460638,1579.9,1579.8,28.17689249]
[1745167091084,6.38e-06,1579.9,1579.8,28.17689249]
[1745167092090,6.38e-06,1579.9,1579.8,28.17681883]
[1745167092789,6.38e-06,1579.9,1579.8,28.17681761]
[1745167093490,0.8702,1580.0,1579.8,28.17681761]
[1745167093491,4.23141341,1580.4,1580.3,1.26555]
[1745167093696,7.59981341,1580.4,1580.3,9.01970452]
[1745167093899,7.59981341,1580.4,1580.3,9.01952225]
[1745167095194,8.86528341,1580.4,1580.3,9.01952225]
[1745167095806,7.59981341,1580.4,1580.3,9.01952225]
[1745167096803,4.63387,1580.4,1580.3,9.01952225]
[1745167097103,3.3684,1580.4,1580.3,9.01918684]
[1745167097608,3.3684,1580.4,1580.3,9.0191383]
[1745167098111,3.3684,1580.4,1580.3,5.8113383]
[1745167098313,3.3684,1580.4,1580.3,9.0191383]
[1745167099508,3.3684,1580.4,1580.3,9.01905153]
[1745167099804,3.3684,1580.4,1580.3,5.81125153]
[1745167100102,3.3684,1580.4,1580.3,9.01905153]
[1745167101305,3.3684,1580.4,1580.3,9.01901551]
[1745167102809,3.3684,1580.4,1580.3,9.82331551]
[1745167103102,3.3684,1580.4,1580.3,11.49771551]
[1745167103314,3.3684,1580.4,1580.3,11.49765185]
[1745167103812,3.3684,1580.4,1580.3,10.69335185]
[1745167104110,3.3684,1580.4,1580.3,9.01895185]
[1745167105911,4.63387,1580.4,1580.3,7.75040185]
[1745167106210,4.63387,1580.4,1580.3,7.3108]
[1745167106605,4.63387,1580.4,1580.3,3.2078]
[1745167106806,1.26555,1580.3,1580.2,4.11249638]
[1745167107005,2.96955,1580.3,1580.2,4.11249638]
[1745167107212,7.96955,1580.3,1580.2,4.11249638]
[1745167107514,7.96955,1580.3,1580.2,0.00949638]
[1745167108011,2.96955,1580.3,1580.2,0.00949638]
[1745167108813,2.96955,1580.3,1580.2,1.27512638]
[1745167109004,2.96955,1580.3,1580.2,1.71488583]
[1745167109312,2.96955,1580.3,1580.2,1.71490123]
[1745167109714,1.704,1580.3,1580.2,1.71490123]
[1745167110911,2.96955,1580.3,1580.2,1.71490123]
[1745167111114,1.7023,1580.4,1580.2,1.71490123]
[1745167111115,1.7023,1580.4,1580.3,1.26555]
[1745167111414,4.64642,1580.4,1580.2,2.96856638]
[1745167111600,4.64642,1580.4,1580.3,1.26555]
[1745167112310,3.3809,1580.4,1580.3,5.80826757]
[1745167112517,3.3809,1580.4,1580.3,9.01606757]
[1745167113014,4.64637,1580.4,1580.3,9.01606757]
[1745167114106,4.64637,1580.4,1580.3,9.01606295]
[1745167115714,4.64637,1580.4,1580.3,9.0161195]
[1745167115914,4.64637,1580.4,1580.3,7.7505695]
[1745167116418,4.64637,1580.4,1580.3,7.7506121]
[1745167116614,4.64637,1580.4,1580.3,9.4186121]
[1745167118117,4.64637,1580.4,1580.3,9.41869285]
[1745167119013,4.64637,1580.4,1580.3,7.75069285]
[1745167120111,4.64637,1580.4,1580.3,7.75060756]
[1745167121620,7.85417,1580.4,1580.3,0.43980756]
[1745167121812,1.26555,1580.3,1580.2,0.00949638]
[1745167122017,2.91075,1580.3,1580.2,0.00949638]
[1745167124917,2.91075,1580.3,1580.2,2.13175488]
[1745167125719,2.91075,1580.3,1580.2,1.69179638]
[1745167126420,2.91075,1580.3,1580.2,0.00949638]
[1745167128420,1.26563,1580.2,1580.1,3.2078]
[1745167128621,3.79403,1580.2,1580.1,3.2078]
[1745167132021,1.26579,1580.0,1579.9,1.6795]
[1745167132225,1.26587,1579.9,1579.8,2.5182]
[1745167132427,3.78207,1579.9,1579.8,4.54183859]
[1745167132635,3.78207,1579.9,1579.8,2.10913859]
[1745167133128,0.8118,1579.9,1579.8,2.10913859]
[1745167133319,1.26587,1579.9,1579.8,2.10901946]
[1745167134314,1.26587,1579.9,1579.8,3.37493946]
[1745167134529,1.26587,1579.9,1579.8,2.10901946]
[1745167135030,1.26587,1579.9,1579.8,3.37496946]
[1745167135726,1.26587,1579.9,1579.8,2.10897133]
[1745167136629,1.26587,1579.9,1579.8,6.21197133]
[1745167137527,1.26587,1579.9,1579.8,5.7723]
[1745167137730,2.12667,1579.9,1579.8,6.21182915]
[1745167138030,2.12667,1579.9,1579.8,6.2118331]
[1745167139528,2.12667,1579.9,1579.8,6.2117782]
[1745167139725,2.12667,1579.9,1579.8,5.7723]
[1745167139921,3.84347,1579.9,1579.8,5.7723]
[1745167147027,7.25152,1580.1,1579.8,6.21149032]
[1745167147028,5.7179,1580.1,1579.8,6.21149032]
[1745167147223,1.2658,1580.0,1579.9,2.5052]
[1745167147520,1.2658,1580.0,1579.9,0.8914]
[1745167147930,1.2658,1580.0,1579.9,1.33061519]
[1745167148233,1.2658,1580.0,1579.9,1.33073862]
[1745167149230,1.2658,1580.0,1579.9,1.33086384]
[1745167149527,1.2658,1580.0,1579.9,0.8914]
[1745167149733,1.2658,1580.0,1579.9,1.33086729]
[1745167149927,1.2658,1580.0,1579.9,0.8914]
[1745167150129,1.2658,1580.0,1579.9,1.33084078]
[1745167150635,1.2658,1580.0,1579.9,2.59671078]
[1745167150834,1.2658,1580.0,1579.9,1.33084078]
[1745167152837,1.2658,1580.0,1579.9,1.33111797]
[1745167153135,1.2658,1580.0,1579.9,2.59698797]
[1745167154640,1.2658,1580.0,1579.9,2.59707309]
[1745167156538,1.2658,1580.0,1579.9,2.59756037]
[1745167157245,4.47358,1580.1,1580.0,1.26579]
[1745167157440,1.26563,1580.2,1580.1,1.26564]
[1745167157640,1.26563,1580.2,1580.1,2.55913037]
[1745167157830,1.26563,1580.2,1580.1,6.66213037]
[1745167158331,1.26563,1580.2,1580.1,6.66207166]
[1745167158526,1.26563,1580.2,1580.1,5.39643166]
[1745167159735,1.26563,1580.2,1580.1,6.66214166]
[1745167159933,4.47342,1580.3,1580.2,1.26563]
[1745167160237,4.47342,1580.3,1580.2,1.70586166]
[1745167160541,10.58247955,1580.4,1580.3,1.26555]
[1745167160839,10.58247955,1580.4,1580.3,3.33306341]
[1745167161643,11.84794955,1580.4,1580.3,2.89275]
[1745167162844,1.26547,1580.4,1580.3,2.89275]
[1745167163847,1.26547,1580.4,1580.3,1.6272]
[1745167164040,2.13417,1580.4,1580.3,1.6272]
[1745167164245,2.13417,1580.4,1580.3,3.3784]
[1745167164447,3.85587,1580.4,1580.3,3.3784]
[1745167164747,3.85587,1580.4,1580.3,2.5745]
[1745167164947,3.85587,1580.4,1580.3,5.8522]
[1745167167049,3.85587,1580.4,1580.3,7.11775]
[1745167167241,3.85587,1580.4,1580.3,5.8522]
[1745167167443,3.85587,1580.4,1580.3,7.11775]
[1745167167743,2.13417,1580.4,1580.3,6.7315]
[1745167168552,2.13417,1580.4,1580.3,7.99705]
[1745167169053,2.13417,1580.4,1580.3,6.7315]
[1745167170753,3.88427,1580.4,1580.3,6.7315]
[1745167171653,3.88427,1580.4,1580.3,5.8522]
[1745167172760,3.88427,1580.4,1580.3,4.101]
[1745167175770,1.26555,1580.3,1580.2,0.00949638]
[1745167175968,6.99575,1580.3,1580.2,0.00949638]
[1745167183074,3.78795,1580.3,1580.2,0.00949638]
[1745167183373,6.99575,1580.3,1580.2,0.00949638]
[1745167187475,8.99575,1580.3,1580.2,0.00949638]
[1745167191081,13.22716341,1580.3,1580.2,0.00949638]
[1745167195673,1.26563,1580.2,1580.1,1.7619]
[1745167195869,3.75723,1580.2,1580.1,1.7619]
[1745167197989,5.65572,1580.2,1579.9,4.1]
[1745167198287,1.26579,1580.0,1579.9,5.7739]
[1745167198586,1.26579,1580.0,1579.9,6.2134478]
[1745167198787,1.26579,1580.0,1579.9,6.21346067]
[1745167199277,2.07229,1580.0,1579.9,6.21346067]
[1745167200691,1.26579,1580.0,1579.9,6.21357152]
[1745167202088,8.24143341,1580.3,1579.9,11.21357152]
[1745167202089,7.43921341,1580.3,1579.9,11.21357152]
[1745167202287,1.2657,1580.2,1580.0,4.26151152]
[1745167202487,1.2657,1580.2,1580.1,2.95967152]
[1745167205480,1.2657,1580.2,1580.1,2.9602427]
[1745167205890,1.2657,1580.2,1580.1,2.52]
[1745167206191,1.2657,1580.2,1580.1,2.96025842]
[1745167207388,1.2657,1580.2,1580.1,2.96027566]
[1745167210295,1.2657,1580.2,1580.1,4.22583766]
[1745167210587,1.2657,1580.2,1580.1,3.78571]
[1745167210787,1.2657,1580.2,1580.1,4.22581472]
[1745167211193,8.70482341,1580.3,1580.1,4.22581472]
[1745167211388,8.70482341,1580.3,1580.2,2.5468]
[1745167212588,8.70482341,1580.3,1580.2,2.98681013]
[1745167213095,8.70482341,1580.3,1580.2,2.98679639]
[1745167213286,8.70482341,1580.3,1580.2,2.9867962]
[1745167214493,4.47341,1580.3,1580.2,2.9867962]
[1745167214994,4.47341,1580.3,1580.2,2.98668642]
[1745167216796,4.47341,1580.3,1580.2,2.98663751]
[1745167218298,4.47341,1580.3,1580.2,4.25226751]
[1745167218502,4.47341,1580.3,1580.2,2.98663751]
[1745167218689,4.47341,1580.3,1580.2,2.98660047]
[1745167218996,4.47341,1580.3,1580.2,4.25223047]
[1745167220198,4.47341,1580.3,1580.2,2.98660047]
[1745167222297,1.26561,1580.3,1580.2,2.98659989]
[1745167222502,4.47341,1580.3,1580.2,2.98659989]
[1745167224105,4.47341,1580.3,1580.2,2.98670536]
[1745167225102,1.26579,1580.0,1579.9,3.2078]
[1745167225399,1.26579,1580.0,1579.9,0.44002496]
[1745167225599,1.26587,1579.9,1579.8,28.4536106]
[1745167225795,5.36147,1579.9,1579.8,21.389037]
[1745167225998,5.36147,1579.9,1579.8,13.00759611]
[1745167226197,5.36147,1579.9,1579.8,12.56742268]
[1745167226198,6.23637,1579.9,1579.8,12.56742268]
[1745167226395,6.23637,1579.9,1579.8,15.50382113]
[1745167227001,6.23637,1579.9,1579.8,15.06382268]
[1745167227302,6.23637,1579.9,1579.8,14.22312268]
[1745167228296,6.23637,1579.9,1579.8,15.06382268]
[1745167229800,4.47367,1579.9,1579.8,15.06382268]
[1745167230707,4.47367,1579.9,1579.8,2.4964]
[1745167231109,4.47367,1579.9,1579.8,1.6557]
[1745167231404,6.97627,1579.9,1579.8,1.6557]
[1745167235304,4.47367,1579.9,1579.8,1.6557]
[1745167237007,4.47367,1579.9,1579.8,2.92165]
[1745167237209,4.47367,1579.9,1579.8,1.6557]
[1745167237710,4.47367,1579.9,1579.8,2.92165]
[1745167238007,4.47367,1579.9,1579.8,1.6557]
[1745167241911,5.30537,1579.9,1579.8,1.6557]
[1745167242615,5.30537,1579.9,1579.8,2.92165]
[1745167242911,4.47367,1579.9,1579.8,1.6557]
[1745167245724,3.2078,1579.9,1579.8,1.6557]
[1745167246021,4.23141341,1580.1,1580.0,1.26579]
[1745167246217,4.23141341,1580.1,1580.0,11.24008179]
[1745167246916,4.23141341,1580.1,1580.0,12.90678179]
[1745167247712,4.23141341,1580.1,1580.0,12.46729]
[1745167247919,4.23141341,1580.1,1580.0,12.90648954]
[1745167248420,8.95524979,1580.4,1580.2,1.26563]
[1745167248719,8.95524979,1580.4,1580.3,6.605]
[1745167249923,8.95524979,1580.4,1580.3,5.7657]
[1745167251719,4.72383638,1580.4,1580.3,5.7657]
[1745167252517,3.45829638,1580.4,1580.2,4.098]
[1745167252821,2.95095,1580.3,1580.2,4.098]
[1745167253019,2.95095,1580.3,1580.2,5.8588]
[1745167253417,2.95095,1580.3,1580.2,6.7248]
[1745167254220,2.95095,1580.3,1580.2,7.99043]
[1745167254924,2.95095,1580.3,1580.2,6.7248]
[1745167258822,2.95095,1580.3,1580.2,7.99043]
[1745167259521,2.95095,1580.3,1580.2,8.79973]
[1745167259726,2.95095,1580.3,1580.2,7.5341]
[1745167260031,1.26555,1580.3,1580.2,8.79973]
[1745167260424,1.26555,1580.3,1580.2,7.5341]
[1745167260928,2.96225,1580.3,1580.2,7.5341]
[1745167263129,2.96225,1580.3,1580.2,5.8588]
[1745167267029,1.26563,1580.2,1580.1,4.53629088]
[1745167267335,3.80633,1580.2,1580.1,4.097]
[1745167268928,3.80633,1580.2,1580.1,5.7838]
[1745167269422,3.80633,1580.2,1580.1,6.22352675]
[1745167270733,3.80633,1580.2,1580.1,6.22366042]
[1745167270923,3.80633,1580.2,1580.1,5.7838]
[1745167271326,1.26563,1580.2,1580.1,6.22373472]
[1745167271817,1.26563,1580.2,1580.1,6.22370632]
[1745167272223,1.26563,1580.2,1580.1,5.7838]
[1745167272725,2.94643,1580.2,1580.1,5.7838]
[1745167272925,2.94643,1580.2,1580.1,6.22385362]
[1745167273737,2.94643,1580.2,1580.1,4.53705362]
[1745167274231,2.94643,1580.2,1580.1,2.07375362]
[1745167274439,1.26571,1580.1,1580.0,4.097]
[1745167274633,4.70431,1580.1,1580.0,0.44053965]
[1745167274828,4.70431,1580.1,1580.0,4.53753965]
[1745167275033,4.70431,1580.1,1580.0,4.097]
[1745167275235,4.70431,1580.1,1580.0,4.53794437]
[1745167276338,4.70431,1580.1,1580.0,4.097]
[1745167277035,1.26579,1580.0,1579.9,5.8092]
[1745167277243,1.26579,1580.0,1579.9,6.24985688]
[1745167277539,1.26579,1580.0,1579.9,10.34685688]
[1745167278033,2.91299,1580.0,1579.9,10.34685688]
[1745167278432,2.91299,1580.0,1579.9,9.48296471]
[1745167280129,1.26579,1580.0,1579.9,9.48296471]
[1745167281342,1.26579,1580.0,1579.9,6.27516471]
[1745167281539,1.26579,1580.0,1579.9,0.44056471]
[1745167281741,1.26587,1579.9,1579.8,6.6514]
[1745167282039,2.15617,1579.9,1579.8,7.091772]
[1745167284039,2.15617,1579.9,1579.8,7.09158956]
[1745167284241,2.15617,1579.9,1579.8,6.6514]
[1745167286442,3.16506,1579.8,1579.4,8.37295395]
[1745167286638,4.47399,1579.5,1579.4,8.37295395]
[1745167286837,6.47399,1579.5,1579.4,8.37295395]
[1745167287134,8.98409,1579.5,1579.4,8.37295395]
[1745167288041,13.98409,1579.5,1579.4,2.44239671]
[1745167288945,13.98409,1579.5,1579.4,1.17559671]
[1745167290939,8.98409,1579.5,1579.4,1.17559671]
[1745167291247,13.98409,1579.5,1579.4,1.17559671]
[1745167292649,1.26643,1579.2,1579.1,1.7274]
[1745167298160,1.26651,1579.1,1579.0,4.096]
[1745167298356,4.47431,1579.1,1579.0,6.5915]
[1745167298550,4.47431,1579.1,1579.0,1.6636]
[1745167298852,1.26667,1578.9,1578.8,6.6041]
[1745167299149,1.26667,1578.9,1578.8,0.86903972]
[1745167299347,4.47447,1578.9,1578.8,0.86903972]
[1745167299548,1.26683,1578.7,1578.6,4.9299]
[1745167302147,1.26683,1578.7,1578.6,5.7906]
[1745167312868,1.26683,1578.7,1578.6,7.4652]
[1745167313677,1.26683,1578.7,1578.6,1.6746]
[1745167313870,2.95653,1578.7,1578.6,1.6746]
[1745167315565,15.84093,1578.7,1578.0,3.2078]
[1745167315766,4.47496,1578.3,1578.2,1.6226]
[1745167316069,1.26716,1578.3,1578.2,1.6226]
[1745167316778,4.47496,1578.3,1578.2,1.6226]
[1745167327282,3.2078,1578.3,1578.2,2.88984]
[1745167327485,1.26706,1578.5,1578.3,1.26715]
[1745167327681,1.26706,1578.5,1578.4,7.93058]
[1745167327879,6.6158,1578.7,1578.5,1.26699]
[1745167328180,1.26692,1578.6,1578.5,3.1099]
[1745167328382,1.26692,1578.6,1578.5,4.8259]
[1745167329692,1.26692,1578.6,1578.5,6.0929]
[1745167329992,1.26692,1578.6,1578.5,4.8259]
[1745167330189,1.26692,1578.6,1578.5,2.5979]
[1745167332994,1.26692,1578.6,1578.5,3.8649]
[1745167333193,1.26692,1578.6,1578.5,6.0929]
[1745167334098,1.26692,1578.6,1578.5,3.8649]
[1745167335400,1.26692,1578.6,1578.5,2.5979]
[1745167339998,4.8465,1578.7,1578.6,1.26692]
[1745167340199,1.26683,1578.7,1578.6,2.93672]
[1745167341299,1.26683,1578.7,1578.6,1.6698]
[1745167342798,2.88433,1578.7,1578.6,1.6698]
[1745167343394,6.09213,1578.7,1578.6,1.6698]
[1745167344698,2.88433,1578.7,1578.6,1.6698]
[1745167349002,6.09213,1578.7,1578.6,1.6698]
[1745167349804,1.26692,1578.6,1578.5,0.8819]
[1745167350004,3.82702,1578.6,1578.5,2.489]
[1745167350303,3.82702,1578.6,1578.5,4.717]
[1745167350690,1.26692,1578.6,1578.5,5.984]
[1745167350909,1.2669,1578.7,1578.5,5.984]
[1745167351099,1.2669,1578.7,1578.6,7.03892]
[1745167351302,1.2669,1578.7,1578.6,5.772]
[1745167352508,6.9663,1578.7,1578.6,5.772]
[1745167357311,5.3106,1578.7,1578.6,7.03892]
[1745167358004,5.3106,1578.7,1578.6,5.772]
[1745167358308,5.3106,1578.7,1578.6,7.03892]
[1745167358509,3.2078,1578.7,1578.6,7.03892]
[1745167361212,4.48408638,1578.8,1578.6,7.03892]
[1745167361408,4.48408638,1578.8,1578.7,2.5716]
[1745167361706,4.48408638,1578.8,1578.7,3.4471]
[1745167364814,4.48404638,1578.8,1578.7,3.4471]
[1745167365016,4.48404638,1578.8,1578.7,4.71393]
[1745167365213,0.00949638,1578.8,1578.7,4.71393]
[1745167365414,0.00949638,1578.8,1578.7,9.71393]
[1745167365614,0.00949638,1578.8,1578.7,4.71393]
[1745167366214,0.00949638,1578.8,1578.7,6.94193]
[1745167402135,0.00949638,1578.8,1578.7,12.82593]
[1745167402340,3.4084,1579.1,1579.0,1.26659]
[1745167402642,3.39913972,1579.1,1579.0,5.36259]
[1745167402842,4.66564972,1579.1,1579.0,5.36259]
[1745167403141,3.39913972,1579.1,1579.0,9.31329]
[1745167403339,4.66564972,1579.1,1579.0,9.31329]
[1745167404644,4.66564972,1579.1,1579.0,6.324]
[1745167405146,4.66564972,1579.1,1579.0,4.096]
[1745167410552,4.66564972,1579.1,1579.0,5.36259]
[1745167410850,4.66564972,1579.1,1579.0,4.096]
[1745167415857,1.26659,1579.0,1578.9,1.6935]
[1745167416151,1.26667,1578.9,1578.8,8.40741647]
[1745167416355,2.12697,1578.9,1578.8,12.50141647]
[1745167419962,2.12697,1578.9,1578.8,4.094]
[1745167420269,3.88537,1578.9,1578.8,4.094]
[1745167422174,7.09317,1578.9,1578.8,4.094]
[1745167425374,7.09317,1578.9,1578.8,5.7251]
[1745167426079,3.88537,1578.9,1578.8,5.7251]
[1745167426771,4.23141341,1579.0,1578.8,5.7251]
[1745167426979,4.23141341,1579.0,1578.9,3.71607]
[1745167427277,4.23141341,1579.0,1578.9,4.59547]
[1745167427577,4.23141341,1579.0,1578.9,9.59547]
[1745167428072,4.23141341,1579.0,1578.9,11.82347]
[1745167429174,4.23141341,1579.0,1578.9,17.70747]
[1745167431380,1.2664,1579.3,1578.9,24.84821647]
[1745167431575,1.25713972,1579.3,1579.1,1.26645]
[1745167431876,1.25713972,1579.3,1579.2,7.465]
[1745167435282,1.25713972,1579.3,1579.2,8.73143]
[1745167435581,2.14774,1579.4,1579.2,8.73143]
[1745167435781,2.14774,1579.4,1579.3,1.7082]
[1745167435973,2.14774,1579.4,1579.3,2.97455]
[1745167436368,2.14774,1579.4,1579.3,1.7082]
[1745167436685,2.14774,1579.4,1579.3,2.97455]
[1745167436880,2.14774,1579.4,1579.3,1.7082]
[1745167437482,8.29701341,1579.5,1579.3,2.97452]
[1745167437887,9.56320341,1579.5,1579.4,1.7082]
[1745167439085,11.28280341,1579.5,1579.4,1.7082]
[1745167440483,7.05139,1579.5,1579.4,1.7082]
[1745167441487,5.33179,1579.5,1579.4,1.7082]
[1745167442084,7.03519,1579.5,1579.4,1.7082]
[1745167442286,5.33179,1579.5,1579.4,2.97447]
[1745167442691,4.47399,1579.5,1579.4,2.97447]
[1745167443792,3.2078,1579.5,1579.4,2.97447]
[1745167443987,4.47399,1579.5,1579.4,2.97447]
[1745167444684,3.2078,1579.5,1579.4,2.97447]
[1745167445087,4.47399,1579.5,1579.4,2.97447]
[1745167445286,4.47399,1579.5,1579.4,5.20247]
[1745167445486,3.2078,1579.5,1579.4,5.20247]
[1745167445991,4.47399,1579.5,1579.4,5.20247]
[1745167446989,4.47399,1579.5,1579.4,3.9362]
[1745167447191,5.30449,1579.5,1579.4,3.9362]